bitfinex/quotes_SOLUSD_20240714
["timestamp","ask_amount","ask_price","bid_price","bid_amount"]
[1720950958690,45.6838278,146.97,146.91,0.81961536]
[1720950958890,45.6838278,146.97,146.9,8.34440431]
[1720950959303,45.6838278,146.97,146.91,1.36093682]
[1720950960212,45.6838278,146.97,146.9,8.34440431]
[1720950960213,15.6367,146.96,146.9,8.34440431]
[1720950960405,15.6367,146.96,146.91,1.36104729]
[1720950960914,15.6367,146.96,146.9,8.34440431]
[1720950961299,15.6367,146.96,146.91,1.36101261]
[1720950962595,15.6367,147.0,146.91,1.36101261]
[1720950964221,15.6367,147.0,146.91,62.15825632]
[1720950964418,15.6367,147.04,146.92,58.40111428]
[1720950964609,15.6367,147.04,146.93,46.36018887]
[1720950964800,15.6367,147.04,146.94,42.88947496]
[1720950965118,15.6367,147.04,146.95,46.36014833]
[1720950965298,15.6367,147.04,146.96,1.36014594]
[1720950965721,6.3357,147.06,146.96,1.36014594]
[1720950968926,15.1759,147.07,146.95,45.0]
[1720950969234,15.1759,147.07,146.96,36.2216316]
[1720950969418,15.1759,147.07,146.97,52.09176068]
[1720950969621,15.1759,147.07,146.98,1.35986862]
[1720950969916,15.1759,147.07,146.98,21.35986862]
[1720950970118,15.1759,147.07,146.99,45.0]
[1720950970327,15.1759,147.07,147.0,1.35987179]
[1720950970521,15.1759,147.07,146.97,7.09176068]
[1720950970926,15.1759,147.07,146.96,7.77000441]
[1720950971109,15.1759,147.07,146.97,65.0]
[1720950979231,15.1759,147.07,146.98,1.35989739]
[1720950979538,15.1759,147.07,146.97,65.0]
[1720950979725,15.1759,147.07,146.98,1.36000713]
[1720950981618,15.1759,147.07,146.97,65.0]
[1720950987238,15.1759,147.07,146.98,1.35985599]
[1720950988921,15.1759,147.07,146.97,20.0]
[1720950989122,0.6838278,147.06,146.96,7.77000441]
[1720950989362,45.6838278,147.06,146.97,1.36014632]
[1720950990047,15.1759,147.07,146.97,1.36014632]
[1720950990349,7.2833278,147.06,146.94,20.0]
[1720950990644,7.2833278,147.06,146.93,25.58604008]
[1720950991022,45.0,147.05,146.93,22.88947496]
[1720950991218,0.6838278,147.04,146.93,22.88947496]
[1720950991418,16.4599,147.03,146.94,1.36029868]
[1720950991646,45.6838278,147.02,146.94,1.36029868]
[1720950991850,45.0,147.02,146.94,1.36029868]
[1720950995256,0.6838278,147.01,146.93,8.02770987]
[1720950995549,6.5995,147.0,146.9,7.77000441]
[1720950995749,6.5995,147.0,146.91,1.36055897]
[1720950997044,45.0,146.99,146.91,1.36055897]
[1720950997738,6.5995,147.0,146.91,1.36055897]
[1720950998146,45.6838278,146.99,146.91,1.36055897]
[1720950998452,45.0,146.99,146.91,1.36055897]
[1720950998951,6.5995,147.0,146.91,1.36055897]
[1720951002955,6.5995,147.0,146.91,46.36055897]
[1720951003443,6.5995,147.0,146.91,1.36055897]
[1720951003635,6.5995,147.0,146.91,46.36055897]
[1720951004762,6.5995,147.0,146.91,1.36055897]
[1720951005059,6.5995,147.0,146.9,7.77000441]
[1720951005060,45.6838278,146.99,146.9,7.77000441]
[1720951005239,6.5995,147.0,146.91,1.3607362]
[1720951005647,0.6838278,146.99,146.91,1.3607362]
[1720951005850,6.5995,147.0,146.91,1.3607362]
[1720951006050,6.5995,147.0,146.91,46.3607362]
[1720951010543,0.6838278,147.02,146.92,1.36061314]
[1720951010744,45.0,147.02,146.93,1.36048496]
[1720951011566,0.6838278,147.01,146.93,1.36048496]
[1720951011770,45.0,147.02,146.93,1.36048496]
[1720951012645,45.0,147.02,146.91,51.6396]
[1720951013468,45.0,147.02,146.92,1.3605086]
[1720951013469,0.6838278,147.01,146.92,1.3605086]
[1720951013866,0.6838278,147.01,146.91,6.6396]
[1720951014171,0.6838278,147.02,146.91,6.6396]
[1720951014951,0.6838278,147.01,146.91,6.6396]
[1720951016773,0.6838278,147.01,146.92,1.36072881]
[1720951017366,16.4599,147.03,146.92,1.36066719]
[1720951017667,17.1437278,147.03,146.92,46.36066719]
[1720951017856,16.4599,147.03,146.92,46.36066719]
[1720951018059,21.8494,147.07,146.93,15.207]
[1720951018356,21.8494,147.07,146.94,46.36029853]
[1720951018564,21.8494,147.07,146.94,45.0]
[1720951019362,21.8494,147.07,146.95,1.36018683]
[1720951020165,45.0,147.06,146.95,1.36018683]
[1720951020368,0.6838278,147.05,146.93,15.207]
[1720951020569,0.6838278,147.05,146.94,1.36047499]
[1720951022069,0.6838278,147.05,146.93,15.207]
[1720951022369,0.6838278,147.05,146.94,1.3603895]
[1720951027674,15.4064,147.04,146.94,1.3603895]
[1720951027856,45.6838278,147.03,146.92,1.36057797]
[1720951028678,45.6838278,147.03,146.93,1.36057808]
[1720951028892,0.6838278,147.02,146.93,1.36057808]
[1720951029377,0.6838278,147.02,146.91,14.40960441]
[1720951029576,0.6838278,147.02,146.92,46.36050791]
[1720951030075,0.6838278,147.02,146.92,1.36050791]
[1720951031777,15.4064,147.04,146.92,23.77794369]
[1720951031987,15.4064,147.04,146.94,15.9414]
[1720951032158,6.3758,147.07,146.95,46.36017858]
[1720951032482,7.0596278,147.07,146.95,46.36017858]
[1720951032850,6.3758,147.07,146.95,46.36017858]
[1720951033055,6.3758,147.07,146.97,6.5756]
[1720951033282,6.3758,147.07,146.98,45.0]
[1720951033481,15.4064,147.08,146.98,45.0]
[1720951033977,0.6838278,147.07,147.0,15.9414]
[1720951034183,6.4292,147.1,147.01,1.36004663]
[1720951035165,45.0,147.09,147.01,1.36004663]
[1720951035563,6.4292,147.1,147.01,1.36004663]
[1720951036061,7.12240857,147.15,147.02,7.93547842]
[1720951036371,15.4064,147.17,147.04,15.9414]
[1720951036575,15.4064,147.17,147.05,66.35921802]
[1720951037472,16.0902278,147.17,147.05,66.35921802]
[1720951037873,16.0902278,147.17,147.05,65.0]
[1720951038877,16.0902278,147.17,147.06,1.35912611]
[1720951040269,45.0,147.16,147.06,1.35912611]
[1720951040476,0.6838278,147.15,147.06,1.35912611]
[1720951044392,15.4064,147.12,147.01,15.9414]
[1720951044570,45.6838278,147.11,147.01,15.9414]
[1720951044770,0.6838278,147.1,147.01,15.9414]
[1720951045463,0.6838278,147.1,146.98,6.5756]
[1720951046393,10.0,147.05,146.98,6.5756]
[1720951046591,10.0,147.05,146.99,1.36018652]
[1720951046891,10.0,147.08,146.99,1.36018652]
[1720951047092,45.0,147.07,146.99,1.36018652]
[1720951047495,10.0,147.06,146.99,1.36018652]
[1720951047696,15.0,147.02,146.99,1.36018652]
[1720951048689,0.6838278,147.05,146.98,6.5756]
[1720951048892,10.0,147.04,146.98,6.5756]
[1720951049095,15.0,147.02,146.98,6.5756]
[1720951049386,10.0,147.04,146.99,1.36041433]
[1720951049592,45.0,147.03,146.99,1.36041433]
[1720951049975,45.0,147.04,146.99,1.36030595]
[1720951050170,25.6838278,147.11,146.99,1.36030595]
[1720951050476,25.6838278,147.11,146.99,46.35977001]
[1720951050682,15.6838278,147.11,146.99,46.35977001]
[1720951050978,15.6838278,147.11,147.0,20.0]
[1720951051181,15.6838278,147.11,147.01,1.35973274]
[1720951051367,15.0,147.11,147.01,1.35973274]
[1720951051571,25.0,147.11,147.02,1.35966015]
[1720951052491,25.0,147.11,147.01,1.35966182]
[1720951052702,45.0,147.1,147.02,1.35966183]
[1720951053682,45.0,147.1,147.01,1.35966277]
[1720951053885,45.0,147.1,147.02,1.35966339]
[1720951054594,15.0,147.13,147.03,22.7089]
[1720951054891,0.6838278,147.12,147.04,21.35945978]
[1720951055090,15.0,147.1,147.04,20.0]
[1720951055477,0.6838278,147.12,147.05,1.35964611]
[1720951055684,15.0,147.11,147.05,1.35964611]
[1720951057078,0.6838278,147.12,147.05,1.35964611]
[1720951057279,60.6838278,147.12,147.05,1.35964611]
[1720951058390,10.0,147.11,147.03,22.7089]
[1720951058574,45.6838278,147.1,147.03,22.7089]
[1720951059309,15.0,147.09,147.03,22.7089]
[1720951059476,45.0,147.1,147.04,1.35981671]
[1720951059675,15.0,147.09,147.03,22.7089]
[1720951062182,10.6838278,147.09,147.03,22.7089]
[1720951062584,15.0,147.08,147.03,22.7089]
[1720951063889,60.0,147.1,147.03,22.7089]
[1720951064106,15.0,147.12,147.04,1.35964709]
[1720951064410,45.0,147.11,147.04,1.35964709]
[1720951064818,15.0,147.14,147.04,1.35962223]
[1720951064990,15.0,147.14,147.04,21.35962223]
[1720951066218,45.0,147.13,147.04,21.35962223]
[1720951066394,15.0,147.1,147.04,21.35962223]
[1720951067401,45.0,147.13,147.04,21.35962223]
[1720951068689,45.0,147.13,147.04,20.0]
[1720951069309,45.0,147.13,147.05,1.35940954]
[1720951071015,45.0,147.13,147.04,20.0]
[1720951071699,45.0,147.13,147.05,1.35939562]
[1720951072598,45.0,147.13,147.04,20.0]
[1720951075105,15.0,147.14,147.04,20.0]
[1720951075300,15.0,147.14,147.05,1.35669488]
[1720951076210,0.6838278,147.18,147.06,22.0972]
[1720951076211,15.0,147.16,147.06,22.0972]
[1720951076416,15.0,147.16,147.07,45.0]
[1720951076791,15.0,147.18,147.08,23.45629553]
[1720951077012,15.0,147.18,147.09,65.0]
[1720951077305,15.0,147.18,147.1,1.35880375]
[1720951077500,15.0,147.18,147.11,1.35880239]
[1720951079215,20.6838278,147.17,147.09,1.35928466]
[1720951079409,20.6838278,147.17,146.96,20.48]
[1720951079410,15.0,147.12,147.04,22.0972]
[1720951079613,15.0,147.1,147.05,0.63474129]
[1720951079808,15.0,147.12,147.04,22.0972]
[1720951079998,45.6838278,147.11,147.04,22.0972]
[1720951080195,0.6838278,147.1,147.04,22.0972]
[1720951080793,15.0,147.08,147.04,22.0972]
[1720951081015,15.0,147.08,147.05,1.23842683]
[1720951081217,15.6838278,147.1,147.05,1.23842683]
[1720951081598,45.0,147.09,147.05,1.23842683]
[1720951081910,15.0,147.1,147.05,1.23842683]
[1720951082811,15.6838278,147.1,147.05,1.23842683]
[1720951083193,15.0,147.1,147.05,1.23842683]
[1720951083397,10.0,147.11,147.04,22.0972]
[1720951083398,15.0,147.12,147.04,22.0972]
[1720951083700,10.0,147.13,147.04,22.0972]
[1720951083903,60.0,147.12,147.05,1.3575646]
[1720951084302,15.0,147.14,147.05,1.3575646]
[1720951084499,15.0,147.12,147.05,1.3575646]
[1720951085302,15.0,147.12,147.04,22.0972]
[1720951086120,15.0,147.12,147.05,1.35941712]
[1720951087037,6.67512526,147.24,147.08,42.6398]
[1720951087205,10.0,147.25,147.1,42.6398]
[1720951087527,10.0,147.28,147.12,36.1729]
[1720951087716,10.0,147.28,147.13,72.82516794]
[1720951088025,10.0,147.28,147.14,36.1729]
[1720951088241,10.0,147.28,147.15,93.30499578]
[1720951089117,10.0,147.25,147.15,27.82499578]
[1720951089332,10.0,147.25,147.16,1.35840917]
[1720951089532,45.0,147.24,147.16,1.35840917]
[1720951089704,45.0,147.24,147.16,0.42739973]
[1720951090204,45.0,147.24,147.15,6.4669]
[1720951090405,45.0,147.24,147.16,1.35840834]
[1720951090938,60.0,147.24,147.16,1.35840834]
[1720951091123,45.0,147.24,147.16,1.35840834]
[1720951091608,45.0,147.24,147.15,6.4669]
[1720951091811,15.0,147.27,147.15,6.4669]
[1720951092007,45.0,147.26,147.15,6.4669]
[1720951094024,15.0,147.25,147.15,6.4669]
[1720951094345,45.0,147.26,147.15,6.4669]
[1720951094629,60.0,147.26,147.15,6.4669]
[1720951094934,60.0,147.26,147.16,0.91016008]
[1720951095137,60.0,147.26,147.16,1.35831898]
[1720951096917,45.0,147.26,147.15,6.4669]
[1720951097125,45.0,147.27,147.15,6.4669]
[1720951097322,45.0,147.27,147.16,1.35831928]
[1720951097546,45.0,147.27,147.17,1.3582787]
[1720951097850,15.0,147.26,147.17,1.3582787]
[1720951098036,45.0,147.25,147.17,1.3582787]
[1720951098214,10.0,147.23,147.15,6.4669]
[1720951098537,45.0,147.22,147.15,6.4669]
[1720951098733,10.0,147.25,147.15,6.4669]
[1720951099039,10.0,147.27,147.15,6.4669]
[1720951099341,15.0,147.25,147.15,6.4669]
[1720951099707,45.0,147.26,147.15,6.4669]
[1720951099929,45.0,147.26,147.16,1.35836117]
[1720951100138,15.0,147.25,147.16,1.35836117]
[1720951100598,45.0,147.26,147.16,1.35836117]
[1720951101206,15.0,147.25,147.16,1.35836117]
[1720951101407,25.2,147.29,147.17,15.6929]
[1720951101624,10.0,147.27,147.17,15.6929]
[1720951102232,25.0,147.27,147.18,1.35832614]
[1720951102641,15.0,147.27,147.18,1.35832614]
[1720951103017,15.0,147.27,147.17,15.6929]
[1720951104447,15.0,147.25,147.17,15.6929]
[1720951105027,15.0,147.25,147.18,1.35697201]
[1720951106056,15.0,147.25,147.17,15.6929]
[1720951106240,15.0,147.26,147.17,15.6929]
[1720951106438,15.0,147.28,147.17,15.6929]
[1720951106650,45.0,147.27,147.17,15.6929]
[1720951107453,15.0,147.26,147.17,15.6929]
[1720951110441,45.0,147.25,147.17,15.6929]
[1720951111565,15.0,147.24,147.17,15.6929]
[1720951113646,15.0,147.22,147.17,15.6929]
[1720951113846,15.0,147.24,147.17,15.6929]
[1720951114061,45.0,147.23,147.17,15.6929]
[1720951114367,15.0,147.22,147.17,15.6929]
[1720951114750,45.0,147.23,147.17,15.6929]
[1720951115258,15.0,147.22,147.17,15.6929]
[1720951116376,45.0,147.21,147.15,6.4669]
[1720951117251,15.0,147.2,147.15,6.4669]
[1720951118968,15.0,147.18,147.15,6.4669]
[1720951121834,15.0,147.18,147.12,15.1795]
[1720951123365,15.0,147.16,147.12,15.1795]
[1720951123871,15.0,147.18,147.12,15.1795]
[1720951124442,15.0,147.16,147.12,15.1795]
[1720951124974,10.0,147.17,147.08,21.4657]
[1720951124975,10.0,147.15,147.08,21.4657]
[1720951125138,10.0,147.12,147.04,21.4657]
[1720951125341,15.0,147.1,147.05,1.22228555]
[1720951127948,15.0,147.08,147.05,1.22228555]
[1720951128375,0.804476,147.08,147.05,1.22228555]
[1720951128686,0.804476,147.08,147.04,21.4657]
[1720951129585,45.0,147.09,147.04,21.4657]
[1720951129752,45.0,147.09,147.05,1.35986659]
[1720951131648,10.0,147.12,147.05,1.35986659]
[1720951131849,45.0,147.11,147.05,1.35986659]
[1720951133165,10.0,147.1,147.05,1.35986659]
[1720951133481,45.0,147.09,147.05,1.35986659]
[1720951133648,44.869171,147.09,147.05,1.35986659]
[1720951136303,2.78379426,147.12,147.07,21.4506]
[1720951136510,10.0,147.22,147.08,20.0]
[1720951136807,10.0,147.22,147.08,83.49872647]
[1720951136978,10.0,147.22,147.09,18.49872647]
[1720951136979,0.804476,147.21,147.09,18.49872647]
[1720951137182,10.0,147.22,147.1,65.0]
[1720951137398,0.804476,147.19,147.11,1.35884399]
[1720951138684,10.0,147.17,147.07,21.4506]
[1720951138871,0.804476,147.16,147.07,21.4506]
[1720951140066,0.804476,147.14,147.08,45.0]
[1720951140270,0.804476,147.16,147.08,45.0]
[1720951143100,0.804476,147.14,147.08,45.0]
[1720951146701,10.804476,147.17,147.08,45.0]
[1720951147013,0.804476,147.14,147.08,45.0]
[1720951147382,0.804476,147.14,147.07,21.4506]
[1720951148477,10.0,147.13,147.07,21.4506]
[1720951149602,45.804476,147.14,147.07,21.4506]
[1720951150113,0.804476,147.12,147.07,21.4506]
[1720951150917,0.804476,147.1,147.07,21.4506]
[1720951151705,0.804476,147.1,146.99,252.45428066]
[1720951151909,0.804476,147.08,147.01,22.985]
[1720951152077,0.804476,147.11,147.02,1.15038038]
[1720951152284,10.0,147.12,147.01,22.985]
[1720951152501,0.804476,147.09,147.01,22.985]
[1720951153416,0.804476,147.09,147.02,1.35847287]
[1720951153982,0.804476,147.09,147.02,46.35847287]
[1720951155417,0.804476,147.09,147.02,45.0]
[1720951155913,0.804476,147.09,147.03,0.96184766]
[1720951156814,0.804476,147.09,147.03,1.35959108]
[1720951159687,0.804476,147.07,147.03,1.35959108]
[1720951159989,0.804476,147.09,147.03,1.35959108]
[1720951164632,0.804476,147.07,147.03,1.35959108]
[1720951164816,0.804476,147.07,147.02,1.35990412]
[1720951165132,0.804476,147.09,147.02,46.35990412]
[1720951170017,0.804476,147.05,147.02,46.35990412]
[1720951170422,0.804476,147.07,147.02,46.35990412]
[1720951172037,0.804476,147.07,147.01,22.985]
[1720951172344,6.4387,147.1,147.01,22.985]
[1720951172345,0.804476,147.09,147.01,22.985]
[1720951172721,0.804476,147.06,147.01,22.985]
[1720951173445,0.804476,147.06,147.02,1.35991112]
[1720951174635,0.804476,147.08,147.02,1.35991112]
[1720951175827,0.804476,147.09,147.02,1.35991112]
[1720951176420,0.804476,147.09,147.02,46.35991112]
[1720951177124,0.804476,147.09,147.02,1.35991112]
[1720951177630,6.4387,147.1,147.02,1.35991112]
[1720951177631,0.804476,147.07,147.02,1.35991112]
[1720951180362,0.804476,147.05,146.99,16.4057]
[1720951180553,0.804476,147.05,147.0,45.0]
[1720951180939,0.804476,147.07,147.01,1.35868141]
[1720951181137,0.804476,147.07,147.02,1.35858899]
[1720951181654,0.804476,147.05,147.02,1.35858899]
[1720951186962,0.804476,147.05,147.0,45.0]
[1720951187256,0.804476,147.05,147.01,1.22923489]
[1720951188965,0.804476,147.05,147.0,45.0]
[1720951191452,16.6084,147.08,146.96,15.7209]
[1720951191453,10.0,147.07,146.96,15.7209]
[1720951191653,30.0,147.07,146.96,15.7209]
[1720951191844,0.804476,147.05,146.96,15.7209]
[1720951193163,0.804476,147.05,146.97,45.0]
[1720951193660,0.804476,147.05,146.98,0.51610345]
[1720951193840,0.804476,147.05,146.98,1.36023915]
[1720951194161,20.804476,147.07,146.99,1.36015122]
[1720951194840,0.804476,147.04,146.99,1.36015122]
[1720951195559,0.804476,147.06,146.99,1.36015122]
[1720951196159,0.804476,147.04,146.99,1.36015122]
[1720951199460,0.804476,147.05,146.97,45.0]
[1720951199955,0.804476,147.05,146.98,1.3600765]
[1720951200553,20.804476,147.07,146.98,1.3600765]
[1720951200747,6.0095,147.06,146.92,236.67474163]
[1720951200945,0.804476,147.02,146.92,18.53501968]
[1720951201274,0.804476,147.03,146.93,1.36040693]
[1720951201782,10.804476,147.05,146.93,1.36040693]
[1720951202267,0.804476,147.05,146.93,1.36040693]
[1720951202840,0.804476,147.04,146.93,1.36040693]
[1720951203038,6.813976,147.06,146.93,45.0]
[1720951203470,6.813976,147.06,146.93,54.4875687]
[1720951203676,6.813976,147.06,146.94,1.35949104]
[1720951203961,16.0095,147.06,146.94,1.35949104]
[1720951204169,0.804476,147.05,146.94,1.35949104]
[1720951204346,0.804476,147.05,146.93,54.4875687]
[1720951204548,0.804476,147.05,146.94,1.36037182]
[1720951205064,0.804476,147.05,146.93,54.4875687]
[1720951205441,0.804476,147.03,146.92,15.7209]
[1720951205862,16.2541,147.02,146.92,15.7209]
[1720951206373,0.804476,147.0,146.92,15.7209]
[1720951206538,17.058576,147.02,146.93,1.36059913]
[1720951206738,16.2541,147.02,146.93,1.36059913]
[1720951207175,16.2541,147.02,146.93,46.36059913]
[1720951207542,17.058576,147.02,146.93,46.36059913]
[1720951207849,16.2541,147.02,146.93,46.36059913]
[1720951208046,0.804476,147.01,146.93,46.36059913]
[1720951208570,16.2541,147.02,146.93,46.36059913]
[1720951209270,0.804476,147.01,146.93,46.36059913]
[1720951209476,16.2541,147.02,146.93,46.36059913]
[1720951210069,16.006,147.01,146.94,1.36049441]
[1720951210276,16.006,147.01,146.91,1.56075071]
[1720951210475,6.006,147.01,146.91,1.56075071]
[1720951210772,0.804476,146.99,146.91,1.56075071]
[1720951212072,6.810476,147.01,146.91,1.56075071]
[1720951212577,16.810476,147.01,146.91,1.56075071]
[1720951213155,6.810476,147.01,146.91,1.56075071]
[1720951213670,0.804476,146.99,146.91,1.56075071]
[1720951214072,6.006,147.01,146.91,1.56075071]
[1720951214073,6.810476,147.01,146.91,1.56075071]
[1720951214372,0.804476,146.99,146.91,1.56075071]
[1720951215078,6.810476,147.01,146.91,1.56075071]
[1720951215282,16.2541,147.02,146.91,1.56075071]
[1720951215485,16.2541,147.02,146.92,22.1608]
[1720951215787,17.058576,147.02,146.93,46.36035748]
[1720951216082,16.2541,147.02,146.93,46.36035748]
[1720951216455,16.2541,147.02,146.93,45.0]
[1720951216663,16.2541,147.02,146.93,42.0]
[1720951216863,0.804476,147.01,146.93,42.0]
[1720951217067,16.2541,147.02,146.94,1.36040025]
[1720951217258,16.2541,147.02,146.93,42.0]
[1720951217858,0.804476,147.01,146.93,42.0]
[1720951218083,16.2541,147.02,146.93,42.0]
[1720951218378,17.058576,147.02,146.94,1.35723892]
[1720951218783,17.058576,147.02,146.93,42.0]
[1720951219985,17.058576,147.02,146.94,0.93017089]
[1720951220359,17.058576,147.02,146.94,1.36038981]
[1720951221880,16.2541,147.02,146.94,1.36038981]
[1720951222656,0.804476,147.01,146.94,1.36038981]
[1720951223096,16.2541,147.02,146.94,1.36038981]
[1720951223955,0.804476,147.0,146.94,1.36038981]
[1720951224771,0.804476,147.0,146.93,42.0]
[1720951225090,6.006,147.0,146.94,1.36063838]
[1720951225685,6.810476,147.0,146.94,1.36063838]
[1720951227196,6.006,147.0,146.94,1.36063838]
[1720951227395,6.006,147.0,146.91,1.56071899]
[1720951228502,6.810476,147.0,146.91,1.56071899]
[1720951228797,6.006,147.0,146.91,1.56071899]
[1720951230098,16.2541,147.02,146.92,1.36076551]
[1720951230695,17.058576,147.02,146.92,46.36076551]
[1720951230896,17.058576,147.02,146.93,20.0]
[1720951231201,17.058576,147.02,146.94,46.36040552]
[1720951231401,0.804476,146.99,146.94,46.36040552]
[1720951232896,0.804476,146.99,146.95,1.25712884]
[1720951233077,0.804476,147.01,146.94,45.0]
[1720951234389,0.804476,147.01,146.95,1.36050928]
[1720951234799,0.804476,147.01,146.94,45.0]
[1720951235108,0.804476,147.01,146.95,1.36045297]
[1720951235476,16.2541,147.02,146.95,21.36045297]
[1720951235702,16.2541,147.02,146.96,45.0]
[1720951235907,16.2541,147.02,146.97,1.36025113]
[1720951236076,6.3705,147.04,146.97,1.36025113]
[1720951238208,0.804476,147.05,146.97,1.36025113]
[1720951239698,15.2594,147.06,146.97,1.36025113]
[1720951240085,15.2594,147.06,146.97,21.36025113]
[1720951240288,15.2594,147.06,146.98,45.0]
[1720951240609,15.2594,147.06,146.99,1.35996481]
[1720951242302,15.2594,147.06,146.96,20.0]
[1720951242474,0.804476,147.05,146.96,20.0]
[1720951242986,0.804476,147.05,146.97,0.51971668]
[1720951243184,0.804476,147.05,146.96,20.0]
[1720951243391,0.804476,147.05,146.97,45.0]
[1720951244497,15.2594,147.06,146.97,45.0]
[1720951244703,0.804476,147.05,146.97,45.0]
[1720951245000,0.804476,147.05,146.98,1.36003864]
[1720951245187,0.804476,147.05,146.97,45.0]
[1720951246401,0.804476,147.05,146.98,1.359998]
[1720951246996,15.2594,147.06,146.98,1.359998]
[1720951248194,15.2594,147.06,146.97,45.0]
[1720951251809,15.2594,147.06,146.98,0.62344716]
[1720951252118,15.2594,147.06,146.97,45.0]
[1720951253192,15.6889,147.1,146.98,43.36594042]
[1720951253503,8.96795184,147.12,146.98,43.36594042]
[1720951253504,8.96795184,147.12,146.99,45.0]
[1720951253681,6.1713,147.12,147.0,28.36927528]
[1720951253880,16.493376,147.13,147.02,15.971]
[1720951254082,0.804476,147.11,147.03,46.35916204]
[1720951254317,15.6889,147.13,147.03,46.35916204]
[1720951254488,0.804476,147.12,147.03,46.35916204]
[1720951255312,18.42814888,147.13,147.03,46.35916204]
[1720951255509,18.42814888,147.13,147.03,1.35916204]
[1720951255692,10.0,147.12,147.03,1.35916204]
[1720951255896,0.804476,147.11,147.03,1.35916204]
[1720951256809,0.804476,147.09,147.03,1.35916204]
[1720951256984,0.804476,147.09,146.99,15.971]
[1720951257192,20.804476,147.09,146.99,15.971]
[1720951258115,10.0,147.08,146.99,15.971]
[1720951258303,0.804476,147.05,146.99,15.971]
[1720951258613,20.804476,147.09,146.99,15.971]
[1720951258922,0.804476,147.04,146.99,15.971]
[1720951261418,0.804476,147.06,146.99,15.971]
[1720951261617,0.804476,147.06,147.0,45.0]
[1720951261917,0.804476,147.03,147.01,1.36005073]
[1720951262316,0.804476,147.05,147.01,1.36005073]
[1720951262489,0.804476,147.05,146.99,15.971]
[1720951262694,0.804476,147.03,146.97,15.971]
[1720951263092,0.804476,147.03,146.98,45.0]
[1720951263319,0.804476,147.05,146.98,45.0]
[1720951263803,0.804476,147.03,146.98,45.0]
[1720951265305,0.804476,147.03,146.99,0.52833567]
[1720951265718,0.804476,147.03,146.99,1.36012363]
[1720951265901,0.804476,147.07,146.99,1.36012363]
[1720951266307,0.804476,147.04,146.98,45.0]
[1720951267022,0.804476,147.04,146.97,15.971]
[1720951267518,0.804476,147.04,146.98,45.0]
[1720951268125,15.6889,147.08,146.99,1.36021637]
[1720951268331,16.3572,147.12,146.99,1.36021637]
[1720951269729,6.975776,147.11,146.99,1.36021637]
[1720951271723,6.1713,147.11,146.99,1.36021637]
[1720951273531,16.3572,147.1,146.99,1.36021637]
[1720951273709,71.836276,147.09,146.93,16.114]
[1720951273903,71.836276,147.09,146.94,1.3571488]
[1720951276029,71.836276,147.09,146.94,46.3571488]
[1720951276718,26.836276,147.09,146.94,52.6099802]
[1720951277109,26.836276,147.09,146.94,51.2528314]
[1720951279012,6.836276,147.09,146.94,51.2528314]
[1720951279324,6.0318,147.09,146.95,1.35981924]
[1720951279706,6.0318,147.09,146.95,41.83981924]
[1720951279936,6.0318,147.09,146.96,45.0]
[1720951280229,6.0318,147.09,146.97,1.35963419]
[1720951282130,16.3572,147.08,146.97,1.35963419]
[1720951282833,16.3572,147.08,146.93,16.114]
[1720951283213,16.3572,147.08,146.94,1.35765757]
[1720951283608,16.3572,147.08,146.93,16.114]
[1720951284132,16.3572,147.08,146.94,45.0]
[1720951285823,16.3572,147.08,146.95,1.35951143]
[1720951288421,16.3572,147.08,146.94,65.48]
[1720951288626,16.3572,147.08,146.95,0.6119843]
[1720951288816,16.3572,147.08,146.95,20.6119843]
[1720951289017,16.3572,147.08,146.96,45.0]
[1720951289337,16.3572,147.08,146.97,1.35958724]